Departmental Area,Entity,Payment Date,Expense type,Expense Area,Supplier Name,Payment Reference,      Invoice Distribution Amount      ,Description,Supplier Type,Expenditure Type
UK Statistics Family,Office for National Statistics,01/12/2023,Exp - Purchase Of Goods/Services - IT Contractual Services,PARTNERSHIP DEVELOPMENT,CGI IT UK Limited,285855,"395,835.42",Information Management Services,Large,Programme Expenditure
UK Statistics Family,Office for National Statistics,01/12/2023,Exp - Purchase Of Goods/Services - IT Contractual Services,IT Applications,Diegesis Limited,285856,"179,168.31",Information Management Services,Large,Programme Expenditure
UK Statistics Family,Office for National Statistics,01/12/2023,Exp - Purchase Of Goods And Services Consultants,Analysis Microdata And Engagement,Parity Resources Limited,285860,"4,353.31",Information Management Services,Large,Programme Expenditure
UK Statistics Family,Office for National Statistics,01/12/2023,Exp - Purchase Of Goods/Services - Contractors,CDIO UNGP,Parity Resources Limited,285860,"18,402.00",Information Management Services,Large,Programme Expenditure
UK Statistics Family,Office for National Statistics,01/12/2023,Exp - Purchase Of Goods/Services - Contractors,IT Applications,Parity Resources Limited,285860,"3,900.00",Information Management Services,Large,Programme Expenditure
UK Statistics Family,Office for National Statistics,01/12/2023,Exp - Purchase Of Goods/Services - Contractors,IT Operations,Parity Resources Limited,285860,"4,800.00",Information Management Services,Large,Programme Expenditure
UK Statistics Family,Office for National Statistics,01/12/2023,Exp - Short-Term Contract & Agency Staff - Full Cost,Interviewer Management FiF,Parity Resources Limited,285860,"6,230.41",Information Management Services,Large,Programme Expenditure
UK Statistics Family,Office for National Statistics,01/12/2023,Exp - Purchase Of Goods/Services - Field Costs,Interviewer Management FiF,Parity Resources Limited,285860,"1,900.32",Information Management Services,Large,Programme Expenditure
UK Statistics Family,Office for National Statistics,01/12/2023,Exp - Short-Term Contract & Agency Staff - Full Cost,Interviewer Support,Parity Resources Limited,285860,701.33,Information Management Services,Large,Programme Expenditure
UK Statistics Family,Office for National Statistics,01/12/2023,Exp - Purchase Of Goods/Services - Field Costs,Interviewer Support,Parity Resources Limited,285860,52.20,Information Management Services,Large,Programme Expenditure
UK Statistics Family,Office for National Statistics,01/12/2023,Other Goods And Services,UKSA,Cabinet Office,285861,"5,760.00",Recruitment Services,Large,Programme Expenditure
UK Statistics Family,Office for National Statistics,01/12/2023,Other Goods And Services,People Solutions,Cabinet Office,285861,"1,440.00",Recruitment Services,Large,Programme Expenditure
UK Statistics Family,Office for National Statistics,01/12/2023,Other Goods And Services,Security And Information Management Saim,Cabinet Office,285861,"44,779.20",Security Vetting Services,Large,Programme Expenditure
UK Statistics Family,Office for National Statistics,01/12/2023,Other Goods And Services,Strategy And Organisational Effectiveness,Cabinet Office,285861,1440,Recruitment Services,Large,Programme Expenditure
UK Statistics Family,Office for National Statistics,01/12/2023,Exp - Purchase Of Goods/Services - Contractors,INTEGRATED DATA STRATEGY AND DELIVERY,Cabinet Office,285861,"7,196.33",Information Management Services,Large,Programme Expenditure
UK Statistics Family,Office for National Statistics,01/12/2023,Other Goods And Services,Divisional Strategy And Support,Cabinet Office,285861,"1,440.00",Recruitment Services,Large,Programme Expenditure
UK Statistics Family,Office for National Statistics,01/12/2023,End User Software And Hardware,IT Operations,Boxxe Ltd,285862,722665.94,Software Licenses,SME,Programme Expenditure
UK Statistics Family,Office for National Statistics,01/12/2023,PPE - NON-PROPERTY (LEASED NON-PFI) - COST - ADDITIONS (AS LESSEE),IT Operations,Crown Hosting Data Centres Limited,285870,63073.75,Information Management Services,SME,Programme Expenditure
UK Statistics Family,Office for National Statistics,01/12/2023,IT (Owned) At Cost - Additions,Tech Delivery Next Gen IT And Infrastructure,Oracle Corporation UK Ltd,285871,29040,Information Management Services,Large,Programme Expenditure
UK Statistics Family,Office for National Statistics,01/12/2023,Hosting,Tech Delivery Next Gen IT And Infrastructure,Oracle Corporation UK Ltd,285871,"104,160.00",Information Management Services,Large,Programme Expenditure
UK Statistics Family,Office for National Statistics,01/12/2023,Exp - Purchase Of Goods/Services - IT Contractual Services,Finance,Oracle Corporation UK Ltd,285872,"214,954.44",Software Licenses,Large,Programme Expenditure
UK Statistics Family,Office for National Statistics,01/12/2023,Capital Major Works >25K,Property Newport,Vinci Construction UK Limited,285875,"124,823.05",Facilities Mangement Services,Large,Programme Expenditure
UK Statistics Family,Office for National Statistics,01/12/2023,Capital Major Works >25K,Property Newport,Vinci Construction UK Limited,285875,"40,079.52",Facilities Mangement Services,Large,Programme Expenditure
UK Statistics Family,Office for National Statistics,01/12/2023,Accommodation & Building Management,Property Newport,Vinci Construction UK Limited,285875,8282.75,Facilities Mangement Services,Large,Programme Expenditure
UK Statistics Family,Office for National Statistics,01/12/2023,FM Contract Payments,Vinci Payments,Vinci Construction UK Limited,285875,27185.49,Facilities Mangement Services,Large,Programme Expenditure
UK Statistics Family,Office for National Statistics,01/12/2023,Hosting,IT Operations,ITS Computing Limited,285880,48400,Information Management Services,Large,Programme Expenditure
UK Statistics Family,Office for National Statistics,01/12/2023,Exp - Purchase Of Goods And Services Consultants,Corporate Planning And Resilience,Ernst & Young LLP,285884,"50,445.27",Consultancy Services,Large,Programme Expenditure
UK Statistics Family,Office for National Statistics,01/12/2023,Exp - Purchase Of Goods And Services Consultants,Internal Audit,Ernst & Young LLP,285884,"38,450.00",Consultancy Services,Large,Programme Expenditure
UK Statistics Family,Office for National Statistics,01/12/2023,Exp - Purchase Of Goods/Services - Training & Development - Seminar & Conference Fees,Data Growth and Operations Central,Ernst & Young LLP,285884,774,Training and Educational Services,Large,Programme Expenditure
UK Statistics Family,Office for National Statistics,01/12/2023,Exp - Purchase Of Goods/Services - Training & Development - Seminar & Conference Fees,Social Surveys Division,Ernst & Young LLP,285884,1082.33,Training and Educational Services,Large,Programme Expenditure
UK Statistics Family,Office for National Statistics,01/12/2023,End User Software And Hardware,IT Operations,Bytes Software Services Ltd,285885,"51,156.64",Software Licenses,Large,Programme Expenditure
UK Statistics Family,Office for National Statistics,01/12/2023,Specialist User Software And Hardware,IT Operations,Bytes Software Services Ltd,285885,"25,232.14",Information Management Services,Large,Programme Expenditure
UK Statistics Family,Office for National Statistics,01/12/2023,Exp - Purchase Of Goods/Services - Postage,REPROGRAPHICS,Royal Mail Group Ltd,285886,"54,048.82",Postage,Large,Programme Expenditure
UK Statistics Family,Office for National Statistics,01/12/2023,Exp - Purchase Of Goods/Services - Postage,Survey Processing Centre,Royal Mail Group Ltd,285886,965.98,Postage,Large,Programme Expenditure
UK Statistics Family,Office for National Statistics,01/12/2023,Exp - Purchase Of Goods/Services - Postage,Interviewer Support,Royal Mail Group Ltd,285886,227.96,Postage,Large,Programme Expenditure
UK Statistics Family,Office for National Statistics,01/12/2023,"ICT Outsourcing, Maintenance And Support",CLOUD ARCHITECTURE,CTS (Cloud Technology Solutions Ltd),285891,"2,082.00",Information Management Services,Large,Programme Expenditure
UK Statistics Family,Office for National Statistics,01/12/2023,Hosting,CLOUD ARCHITECTURE,CTS (Cloud Technology Solutions Ltd),285891,138158.59,Information Management Services,Large,Programme Expenditure
UK Statistics Family,Office for National Statistics,01/12/2023,Exp - Purchase Of Goods/Services - IT Contractual Services,CDIO UNGP,CTS (Cloud Technology Solutions Ltd),285891,81000,Information Management Services,Large,Programme Expenditure
UK Statistics Family,Office for National Statistics,01/12/2023,Exp - Purchase Of Goods/Services - IT Contractual Services,CDIO UNGP,CTS (Cloud Technology Solutions Ltd),285891,"7,915.68",Information Management Services,Large,Programme Expenditure
UK Statistics Family,Office for National Statistics,01/12/2023,Surveys,Crime Statistics,Kantar Public UK Ltd.,285893,"215,077.20",Statistical Services,SME,Programme Expenditure
UK Statistics Family,Office for National Statistics,01/12/2023,Surveys,Crime Statistics,Kantar Public UK Ltd.,285893,"408,000.00",Statistical Services,SME,Programme Expenditure
UK Statistics Family,Office for National Statistics,04/12/2023,Exp - Purchase Of Goods/Services - Postage,REPROGRAPHICS,Royal Mail Group Ltd,286058,"52,923.06",Postage,Large,Programme Expenditure
UK Statistics Family,Office for National Statistics,04/12/2023,Exp - Purchase Of Goods/Services - IT Contractual Services,CLOUD ARCHITECTURE,CTS (Cloud Technology Solutions Ltd),286061,"50,184.00",Information Management Services,Large,Programme Expenditure
UK Statistics Family,Office for National Statistics,04/12/2023,Exp - Purchase Of Goods/Services - Contractors,IT Applications,Talent International,286065,"14,376.00",Information Management Services,SME,Programme Expenditure
UK Statistics Family,Office for National Statistics,04/12/2023,Exp - Purchase Of Goods/Services - Contractors,IT Operations,Talent International,286065,"17,999.76",Information Management Services,SME,Programme Expenditure
UK Statistics Family,Office for National Statistics,05/12/2023,End User Software And Hardware,IT Operations,Softcat PLC UK,286277,"733,696.68",Software Licenses,SME,Programme Expenditure
UK Statistics Family,Office for National Statistics,05/12/2023,Exp - Purchase Of Goods And Services Consultants,Internal Audit,Ernst & Young LLP,286278,"33,000.00",Consultancy Services,Large,Programme Expenditure
UK Statistics Family,Office for National Statistics,05/12/2023,Exp - Short-Term Contract & Agency Staff - Full Cost,Interviewer Management FiF,Parity Resources Limited,286280,"33,870.09",Information Management Services,Large,Programme Expenditure
UK Statistics Family,Office for National Statistics,05/12/2023,Exp - Purchase Of Goods/Services - Field Costs,Interviewer Management FiF,Parity Resources Limited,286280,"5,949.70",Information Management Services,Large,Programme Expenditure
UK Statistics Family,Office for National Statistics,06/12/2023,End User Software And Hardware,IT Operations,Bytes Software Services Ltd,286413,"25,800.74",Information Management Services,Large,Programme Expenditure
UK Statistics Family,Office for National Statistics,06/12/2023,Exp - Purchase Of Goods/Services - IT Contractual Services,DATA ENGINEERING OPERATIONS AND DELIVERY,CTS (Cloud Technology Solutions Ltd),286418,"36,842.40",Information Management Services,Large,Programme Expenditure
UK Statistics Family,Office for National Statistics,06/12/2023,EXP - PURCHASE OF GOODS/SERVICES - DATA ACQUISITION,Prices Division,Kantar Public UK Ltd.,286420,"223,078.80",Statistical Services,SME,Programme Expenditure
UK Statistics Family,Office for National Statistics,06/12/2023,Other Professional Services,Policy Secretariat,Government Legal Department,286423,"10,606.20",Legal Services,Large,Programme Expenditure
UK Statistics Family,Office for National Statistics,06/12/2023,Other Professional Services,Policy Secretariat,Government Legal Department,286423,"20,778.91",Legal Services,Large,Programme Expenditure
UK Statistics Family,Office for National Statistics,06/12/2023,Exp - Purchase Of Goods/Services - Contractors,Testing,Parity Resources Limited,286424,"2,699.22",Information Management Services,Large,Programme Expenditure
UK Statistics Family,Office for National Statistics,06/12/2023,Exp - Purchase Of Goods/Services - Contractors,Security Advisory,Parity Resources Limited,286424,"16,842.00",Information Management Services,Large,Programme Expenditure
UK Statistics Family,Office for National Statistics,06/12/2023,Exp - Short-Term Contract & Agency Staff - Full Cost,Interviewer Management FiF,Parity Resources Limited,286424,"5,590.95",Information Management Services,Large,Programme Expenditure
UK Statistics Family,Office for National Statistics,06/12/2023,Exp - Purchase Of Goods/Services - Field Costs,Interviewer Management FiF,Parity Resources Limited,286424,"1,084.93",Information Management Services,Large,Programme Expenditure
UK Statistics Family,Office for National Statistics,06/12/2023,Exp - Purchase Of Goods/Services - Incentive Payments,Interviewer Support,Pluxee UK Ltd,286431,"1,247.29",Survey Response Incentive Vouchers,Large,Programme Expenditure
UK Statistics Family,Office for National Statistics,06/12/2023,Exp - Purchase Of Goods/Services - Incentive Payments,Interviewer Support,Pluxee UK Ltd,286431,527.51,Survey Response Incentive Vouchers,Large,Programme Expenditure
UK Statistics Family,Office for National Statistics,06/12/2023,Exp - Purchase Of Goods/Services - Incentive Payments,Interviewer Support,Pluxee UK Ltd,286431,"24,788.75",Survey Response Incentive Vouchers,Large,Programme Expenditure
UK Statistics Family,Office for National Statistics,06/12/2023,Exp - Purchase Of Goods/Services - Incentive Payments,Interviewer Support,Pluxee UK Ltd,286431,907.12,Survey Response Incentive Vouchers,Large,Programme Expenditure
UK Statistics Family,Office for National Statistics,06/12/2023,Exp - Purchase Of Goods/Services - Incentive Payments,Strategy And Engagement,Pluxee UK Ltd,286431,582.33,Survey Response Incentive Vouchers,Large,Programme Expenditure
UK Statistics Family,Office for National Statistics,07/12/2023,Hosting,IT Operations,Crown Hosting Data Centres Limited,286528,"80,011.54",Information Management Services,SME,Programme Expenditure
UK Statistics Family,Office for National Statistics,07/12/2023,Exp - Purchase Of Goods/Services - Other Travel,Corporate Centre,Corporate Travel Management ,286533,"40,403.28",Travel and Accommodation,SME,Programme Expenditure
UK Statistics Family,Office for National Statistics,07/12/2023,Exp - Permanent UK Staff - PRP Voucher Payments,ONS Corporate Funds,Edenred (UK Group) Limited,286538,"75,500.00",Performance Reward Vouchers,Large,Programme Expenditure
UK Statistics Family,Office for National Statistics,07/12/2023,Exp - Purchase Of Goods/Services - Incentive Payments,Interviewer Support,Pluxee UK Ltd,286540,"1,499.60",Survey Response Incentive Vouchers,Large,Programme Expenditure
UK Statistics Family,Office for National Statistics,07/12/2023,Exp - Purchase Of Goods/Services - Incentive Payments,Interviewer Support,Pluxee UK Ltd,286540,"1,779.21",Survey Response Incentive Vouchers,Large,Programme Expenditure
UK Statistics Family,Office for National Statistics,07/12/2023,Exp - Purchase Of Goods/Services - Incentive Payments,Interviewer Support,Pluxee UK Ltd,286540,"21,755.48",Survey Response Incentive Vouchers,Large,Programme Expenditure
UK Statistics Family,Office for National Statistics,07/12/2023,Exp - Purchase Of Goods/Services - Incentive Payments,Interviewer Support,Pluxee UK Ltd,286540,"7,139.42",Survey Response Incentive Vouchers,Large,Programme Expenditure
UK Statistics Family,Office for National Statistics,07/12/2023,Exp - Purchase Of Goods/Services - Incentive Payments,Interviewer Support,Pluxee UK Ltd,286540,"23,314.53",Survey Response Incentive Vouchers,Large,Programme Expenditure
UK Statistics Family,Office for National Statistics,07/12/2023,Rent Payable,PROPERTY LONDON 2MS,Government Property Agency (GPA),286541,"154,390.75",Rental Charges,Large,Programme Expenditure
UK Statistics Family,Office for National Statistics,07/12/2023,Other Goods And Services,PROPERTY LONDON 2MS,Government Property Agency (GPA),286541,272570.23,Rental Charges,Large,Programme Expenditure
UK Statistics Family,Office for National Statistics,12/12/2023,Other Goods And Services,FAST STREAM RECHARGES - CABINET OFFICE,Cabinet Office,287004,31466,Fast Stream Services,Large,Programme Expenditure
UK Statistics Family,Office for National Statistics,13/12/2023,Surveys,"External Surveys, Research and Insights",Natcen Social Research,287116,"1,135,954.80",Statistical Services,Large,Programme Expenditure
UK Statistics Family,Office for National Statistics,13/12/2023,Exp - Purchase Of Goods/Services - Incentive Rebates,"External Surveys, Research and Insights",Natcen Social Research,287116,"-232,714.00",Survey Response Incentive Vouchers,Large,Programme Expenditure
UK Statistics Family,Office for National Statistics,13/12/2023,Exp - Purchase Of Goods And Services Consultants,2023 CENSUS DATA TRANSFORMATION,University of Salford,287123,"150,000.00",Digitisation Services,Large,Programme Expenditure
UK Statistics Family,Office for National Statistics,13/12/2023,Exp - Purchase Of Goods/Services - IT Contractual Services,PARTNERSHIP DEVELOPMENT,Diegesis Limited,287133,"10,067.40",Information Management Services,Large,Programme Expenditure
UK Statistics Family,Office for National Statistics,13/12/2023,Exp - Purchase Of Goods/Services - IT Contractual Services,IT Applications,Diegesis Limited,287133,"165,614.40",Information Management Services,Large,Programme Expenditure
UK Statistics Family,Office for National Statistics,14/12/2023,Exp - Purchase Of Goods/Services - Contractors,CDIO UNGP,Parity Resources Limited,287237,"4,600.50",Information Management Services,Large,Programme Expenditure
UK Statistics Family,Office for National Statistics,14/12/2023,Exp - Purchase Of Goods/Services - Contractors,Strategy And Architecture,Parity Resources Limited,287237,"23,999.86",Information Management Services,Large,Programme Expenditure
UK Statistics Family,Office for National Statistics,14/12/2023,Exp - Purchase Of Goods/Services - Contractors,IT Applications,Parity Resources Limited,287237,"3,900.00",Information Management Services,Large,Programme Expenditure
UK Statistics Family,Office for National Statistics,14/12/2023,Exp - Short-Term Contract & Agency Staff - Full Cost,Interviewer Management FiF,Parity Resources Limited,287237,"3,470.38",Information Management Services,Large,Programme Expenditure
UK Statistics Family,Office for National Statistics,14/12/2023,Exp - Purchase Of Goods And Services Consultants,INTEGRATED DATA STRATEGY AND DELIVERY,Deloitte,287239,"414,156.00",Consultancy Services,Large,Programme Expenditure
UK Statistics Family,Office for National Statistics,14/12/2023,Exp - Purchase Of Goods/Services - Contractors,CDIO UNGP,Certes Computing Ltd,287249,"17,251.87",Information Management Services,SME,Programme Expenditure
UK Statistics Family,Office for National Statistics,14/12/2023,Exp - Purchase Of Goods/Services - Contractors,IT Applications,Certes Computing Ltd,287249,"32,348.26",Information Management Services,SME,Programme Expenditure
UK Statistics Family,Office for National Statistics,14/12/2023,Exp - Purchase Of Goods/Services - Contractors,Strategy And Architecture,La International,287250,"24,643.20",Information Management Services,SME,Programme Expenditure
UK Statistics Family,Office for National Statistics,14/12/2023,Exp - Purchase Of Goods/Services - Contractors,IT Applications,La International,287250,"9,162.36",Information Management Services,SME,Programme Expenditure
UK Statistics Family,Office for National Statistics,14/12/2023,EXP - PURCHASE OF GOODS/SERVICES -  NON IT CONTRACTUAL PAYMENTS,ONS Corporate Funds,CGI IT UK Limited,287251,"15,418.14",Information Management Services,Large,Programme Expenditure
UK Statistics Family,Office for National Statistics,14/12/2023,Exp - Purchase Of Goods/Services - IT Contractual Services,PARTNERSHIP DEVELOPMENT,CGI IT UK Limited,287251,"400,577.67",Information Management Services,Large,Programme Expenditure
UK Statistics Family,Office for National Statistics,14/12/2023,Exp - Purchase Of Goods/Services - Other Travel,PARTNERSHIP DEVELOPMENT,CGI IT UK Limited,287251,508.44,Information Management Services,Large,Programme Expenditure
UK Statistics Family,Office for National Statistics,15/12/2023,Exp - Purchase Of Goods/Services - IT Contractual Services,IT Applications,Sas Software Ltd,287331,"715,800.00",Software Licenses,Large,Programme Expenditure
UK Statistics Family,Office for National Statistics,18/12/2023,Exp - Purchase Of Goods/Services - IT Contractual Services,Digital Delivery,ANDigital Limited,287443,"7,800.00",Information Management Services,large,Programme Expenditure
UK Statistics Family,Office for National Statistics,18/12/2023,Exp - Purchase Of Goods/Services - IT Contractual Services,Digital Delivery,ANDigital Limited,287443,"259,884.00",Information Management Services,large,Programme Expenditure
UK Statistics Family,Office for National Statistics,18/12/2023,Exp - Purchase Of Goods/Services - Incentive Payments,Interviewer Support,Pluxee UK Ltd,287444,"1,261.50",Survey Response Incentive Vouchers,Large,Programme Expenditure
UK Statistics Family,Office for National Statistics,18/12/2023,Exp - Purchase Of Goods/Services - Incentive Payments,Interviewer Support,Pluxee UK Ltd,287444,1904.49,Survey Response Incentive Vouchers,Large,Programme Expenditure
UK Statistics Family,Office for National Statistics,18/12/2023,Exp - Purchase Of Goods/Services - Incentive Payments,Interviewer Support,Pluxee UK Ltd,287444,"26,420.69",Survey Response Incentive Vouchers,Large,Programme Expenditure
UK Statistics Family,Office for National Statistics,18/12/2023,Exp - Purchase Of Goods/Services - Incentive Payments,Interviewer Support,Pluxee UK Ltd,287444,"4,668.43",Survey Response Incentive Vouchers,Large,Programme Expenditure
UK Statistics Family,Office for National Statistics,18/12/2023,Exp - Purchase Of Goods/Services - Incentive Payments,Interviewer Support,Pluxee UK Ltd,287444,"23,186.13",Survey Response Incentive Vouchers,Large,Programme Expenditure
UK Statistics Family,Office for National Statistics,18/12/2023,Other Goods And Services,Public Service Productivity Review,Pluxee UK Ltd,287444,276.08,Survey Response Incentive Vouchers,Large,Programme Expenditure
UK Statistics Family,Office for National Statistics,19/12/2023,FM Contract Payments,Vinci Payments,Vinci Construction UK Limited,287678,"355,156.67",Facilities Mangement Services,Large,Programme Expenditure
UK Statistics Family,Office for National Statistics,19/12/2023,Exp - Purchase Of Goods/Services - IT Contractual Services,IT Operations,Ibm United Kingdom Ltd,287679,"113,708.26",Information Management Services,Large,Programme Expenditure
UK Statistics Family,Office for National Statistics,19/12/2023,Surveys,Business Outputs And Developments,Iff Research,287687,"66,557.71",Statistical Services,Large,Programme Expenditure
UK Statistics Family,Office for National Statistics,19/12/2023,EXP - PURCHASE OF GOODS/SERVICES - DATA ACQUISITION,Data As A Service,HMRC.,287695,"122,235.67",Data Acquisition,Large,Programme Expenditure
UK Statistics Family,Office for National Statistics,19/12/2023,Exp - Purchase Of Goods/Services - Telecoms,IT Operations,Freedom Communications (UK) Ltd,287697,"139,303.43",Telecommunications,Large,Programme Expenditure
UK Statistics Family,Office for National Statistics,20/12/2023,FM Contract Payments,Vinci Payments,Vinci Construction UK Limited,287870,"47,349.00",Facilities Mangement Services,Large,Programme Expenditure
UK Statistics Family,Office for National Statistics,20/12/2023,Exp - Purchase Of Goods/Services - IT Contractual Services,Strategy And Architecture,Ibm United Kingdom Ltd,287871,34972.99,Information Management Services,Large,Programme Expenditure
UK Statistics Family,Office for National Statistics,20/12/2023,EXP - PURCHASE OF GOODS/SERVICES - DATA ACQUISITION,Prices Division,Kantar Public UK Ltd.,287882,"47,558.40",Statistical Services,SME,Programme Expenditure
UK Statistics Family,Office for National Statistics,20/12/2023,Specialist User Software And Hardware,CDIO UNGP,Cdw Limited,287883,"26,999.64",Software Licenses,Large,Programme Expenditure
UK Statistics Family,Office for National Statistics,20/12/2023,Specialist User Software And Hardware,CDIO UNGP,Insight Direct,287886,"40,569.07",Software Licenses,Large,Programme Expenditure
UK Statistics Family,Office for National Statistics,20/12/2023,Exp - Purchase Of Goods/Services - IT Contractual Services,Office Of Chief Data And Information,Alexander Mann Solutions Limited,287889,"58,164.48",Information Management Services,Large,Programme Expenditure
UK Statistics Family,Office for National Statistics,20/12/2023,Exp - Purchase Of Goods/Services - IT Contractual Services,Digital Delivery,ANDigital Limited,287890,22200,Information Management Services,large,Programme Expenditure
UK Statistics Family,Office for National Statistics,20/12/2023,Exp - Purchase Of Goods/Services - IT Contractual Services,Digital Delivery,ANDigital Limited,287890,"27,972.00",Information Management Services,large,Programme Expenditure
UK Statistics Family,Office for National Statistics,20/12/2023,Rent Payable,Property Darlington,Government Property Agency (GPA),287891,"15,870.75",Rental Charges,Large,Programme Expenditure
UK Statistics Family,Office for National Statistics,20/12/2023,Other Goods And Services,Property Darlington,Government Property Agency (GPA),287891,"35,436.43",Rental Charges,Large,Programme Expenditure
UK Statistics Family,Office for National Statistics,20/12/2023,Rent Payable,Property Titchfield,Government Property Agency (GPA),287891,"354,787.50",Rental Charges,Large,Programme Expenditure
UK Statistics Family,Office for National Statistics,20/12/2023,Rent Payable,Property Christchurch,Government Property Agency (GPA),287891,"57,522.50",Rental Charges,Large,Programme Expenditure
UK Statistics Family,Office for National Statistics,20/12/2023,"ICT Outsourcing, Maintenance And Support",IT Operations,Government Property Agency (GPA),287891,"5,844.60",Rental Charges,Large,Programme Expenditure
UK Statistics Family,Office for National Statistics,21/12/2023,FM Contract Payments,Vinci Payments,Vinci Construction UK Limited,288013,"357,823.62",Facilities Mangement Services,Large,Programme Expenditure
UK Statistics Family,Office for National Statistics,21/12/2023,"ICT Outsourcing, Maintenance And Support",IT Operations,Scc,288014,"35,774.42",Information Management Services,Large,Programme Expenditure
UK Statistics Family,Office for National Statistics,21/12/2023,Exp - Purchase Of Goods/Services - Other Travel,Corporate Centre,Corporate Travel Management ,288015,65691.25,Travel and Accommodation,SME,Programme Expenditure
UK Statistics Family,Office for National Statistics,21/12/2023,Hosting,IT Operations,ITS Computing Limited,288016,48400,Information Management Services,Large,Programme Expenditure
UK Statistics Family,Office for National Statistics,21/12/2023,Exp - Purchase Of Goods/Services - Postage,REPROGRAPHICS,Royal Mail Group Ltd,288017,58072.92,Postage,Large,Programme Expenditure
UK Statistics Family,Office for National Statistics,21/12/2023,Exp - Purchase Of Goods/Services - Telecoms,IT Operations,High Speed Office (trading as hSo),288018,27298.8,Telecommunications,SME,Programme Expenditure
UK Statistics Family,Office for National Statistics,21/12/2023,Exp - Purchase Of Goods/Services - Telecoms,IT Operations,High Speed Office (trading as hSo),288018,21924,Telecommunications,SME,Programme Expenditure
UK Statistics Family,Office for National Statistics,21/12/2023,Exp - Purchase Of Goods/Services - Telecoms,IT Operations,High Speed Office (trading as hSo),288018,7632,Telecommunications,SME,Programme Expenditure
UK Statistics Family,Office for National Statistics,21/12/2023,Hosting,CLOUD ARCHITECTURE,CTS (Cloud Technology Solutions Ltd),288020,137195.81,Information Management Services,Large,Programme Expenditure
UK Statistics Family,Office for National Statistics,21/12/2023,Exp - Purchase Of Goods/Services - IT Contractual Services,CDIO UNGP,CTS (Cloud Technology Solutions Ltd),288020,81000,Information Management Services,Large,Programme Expenditure
UK Statistics Family,Office for National Statistics,21/12/2023,Hosting,CLOUD ARCHITECTURE,Amazon Web Services Inc,288021,347840.58,Information Management Services,Large,Programme Expenditure
UK Statistics Family,Office for National Statistics,21/12/2023,Other Goods And Services,Ask Business Services,VITALITY CORPORATE SERVICES LIMITED,288024,36483.1,Insurance Services,SME,Programme Expenditure
UK Statistics Family,Office for National Statistics,21/12/2023,Exp - Purchase Of Goods/Services - IT Contractual Services,Office Of Chief Data And Information,Alexander Mann Solutions Limited,288026,92534.4,Information Management Services,Large,Programme Expenditure
UK Statistics Family,Office for National Statistics,21/12/2023,Rent Payable,Property Newport,Government Property Agency (GPA),288028,407345,Rental Charges,Large,Programme Expenditure
UK Statistics Family,Office for National Statistics,21/12/2023,Exp - Purchase Of Goods/Services - Contractors,Data Capability,Parity Resources Limited,288029,19598.64,Information Management Services,Large,Programme Expenditure
UK Statistics Family,Office for National Statistics,21/12/2023,Exp - Purchase Of Goods And Services Consultants,Policy Secretariat,Parity Resources Limited,288029,4717.77,Information Management Services,Large,Programme Expenditure
UK Statistics Family,Office for National Statistics,21/12/2023,Exp - Purchase Of Goods/Services - Contractors,Testing,Parity Resources Limited,288029,2699.22,Information Management Services,Large,Programme Expenditure
UK Statistics Family,Office for National Statistics,21/12/2023,Exp - Purchase Of Goods/Services - Contractors,Security Advisory,Parity Resources Limited,288029,3608.4,Information Management Services,Large,Programme Expenditure
UK Statistics Family,Office for National Statistics,21/12/2023,Exp - Purchase Of Goods/Services - Contractors,IT Applications,Parity Resources Limited,288029,3900,Information Management Services,Large,Programme Expenditure
UK Statistics Family,Office for National Statistics,21/12/2023,Exp - Short-Term Contract & Agency Staff - Full Cost,Interviewer Management FiF,Parity Resources Limited,288029,777.16,Information Management Services,Large,Programme Expenditure
UK Statistics Family,Office for National Statistics,21/12/2023,Exp - Purchase Of Goods/Services - Field Costs,Interviewer Management FiF,Parity Resources Limited,288029,155.94,Information Management Services,Large,Programme Expenditure
UK Statistics Family,Office for National Statistics,22/12/2023,PPE - NON-PROPERTY (LEASED NON-PFI) - COST - ADDITIONS (AS LESSEE),IT Operations,Crown Hosting Data Centres Limited,288111,63114.64,Information Management Services,SME,Programme Expenditure
UK Statistics Family,Office for National Statistics,22/12/2023,"ICT Outsourcing, Maintenance And Support",IT Operations,Crown Hosting Data Centres Limited,288111,2580,Information Management Services,SME,Programme Expenditure
UK Statistics Family,Office for National Statistics,22/12/2023,Exp - Purchase Of Goods/Services - Postage,REPROGRAPHICS,Royal Mail Group Ltd,288120,67102.14,Postage,Large,Programme Expenditure
UK Statistics Family,Office for National Statistics,22/12/2023,Exp - Purchase Of Goods/Services - Postage,Survey Processing Centre,Royal Mail Group Ltd,288120,2093.7,Postage,Large,Programme Expenditure
UK Statistics Family,Office for National Statistics,22/12/2023,Other Professional Services,People Solutions,Government Legal Department,288123,40195.54,Legal Services,Large,Programme Expenditure
UK Statistics Family,Office for National Statistics,22/12/2023,Marketing & Media,Policy Secretariat,Cabinet Office,288126,97214.7,Recruitment Services,Large,Programme Expenditure
UK Statistics Family,Office for National Statistics,22/12/2023,Exp - Purchase Of Goods/Services - Incentive Payments,Interviewer Support,Pluxee UK Ltd,288129,1457.05,Survey Response Incentive Vouchers,Large,Programme Expenditure
UK Statistics Family,Office for National Statistics,22/12/2023,Exp - Purchase Of Goods/Services - Incentive Payments,Interviewer Support,Pluxee UK Ltd,288129,1262.14,Survey Response Incentive Vouchers,Large,Programme Expenditure
UK Statistics Family,Office for National Statistics,22/12/2023,Exp - Purchase Of Goods/Services - Incentive Payments,Interviewer Support,Pluxee UK Ltd,288129,4340.18,Survey Response Incentive Vouchers,Large,Programme Expenditure
UK Statistics Family,Office for National Statistics,22/12/2023,Exp - Purchase Of Goods/Services - Incentive Payments,Interviewer Support,Pluxee UK Ltd,288129,2570.51,Survey Response Incentive Vouchers,Large,Programme Expenditure
UK Statistics Family,Office for National Statistics,22/12/2023,Exp - Purchase Of Goods/Services - Incentive Payments,Interviewer Support,Pluxee UK Ltd,288129,16270.25,Survey Response Incentive Vouchers,Large,Programme Expenditure
UK Statistics Family,Office for National Statistics,08/12/2023,Exp - Purchase Of Goods/Servcies - Stationery,Lodgecard,Royal Bank of Scotland,30004398,1044.49,Multiple Procurement Card Purchases  - Stationery ,Large,Programme Expenditure
UK Statistics Family,Office for National Statistics,08/12/2023,Other Goods And Services,GPC,Royal Bank of Scotland,30004398,53147.84,Multiple Procurement Card Purchases - other goods/services  ,Large,Programme Expenditure
UK Statistics Family,Office for National Statistics,08/12/2023,Exp - Purchase Of Goods/Services - Other Travel,Car Hire,Royal Bank of Scotland,30004398,38974.88,Multiple Procurement Card Purchases - Car Hire  ,Large,Programme Expenditure
UK Statistics Family,Office for National Statistics,14/12/2023,End User Software And Hardware,IT Operations,Centraal Bureau Voor De Statistiek,30004400,258388,Software Licenses,Large,Programme Expenditure
UK Statistics Family,Office for National Statistics,14/12/2023,Specialist User Software And Hardware,Digital Media,Cloudflare ,30004401,78525.42,Software Licenses,Large,Programme Expenditure
UK Statistics Family,Office for National Statistics,19/12/2023,Electricity,Property Newport,Edf Energy,30004406,35713.31,Utility Costs,Large,Programme Expenditure
UK Statistics Family,Office for National Statistics,19/12/2023,Electricity,Property Titchfield,Edf Energy,30004407,29197.11,Utility Costs,Large,Programme Expenditure
,,,,,,,"12,503,921.49",,,
